Cogmind - Beta 14 @@@ ROGUE MODE // 2024.11.16 @ 19:10:25 Player: OG DANIEL Result: Self-destructed Performance ------------- Evolutions (1) 500 Regions Visited (3) 600 Robots Destroyed (29) 145 Value Destroyed (850) 850 Prototype IDs (0) 0 Alien Tech Used (0) 0 Bonus (0) 0 TOTAL SCORE: 2095 Bonus ------- None Cogmind --------- Core Integrity 33/400 Matter 202/300 Energy 100/100 System Corruption 0% Temperature Hot (205) Movement Core (500) Ox9 Location -9/Materials Parts ------- > --- POWER (1) -------- (None) > --- PROPULSION (4) --- (None) > --- UTILITY (2) ------ Large Storage Unit Actuator Array > --- WEAPON (2) ------- Light Cannon > --- INVENTORY (15) --- Light Treads Wheel Medium Matter Pod (100) Light Assault Rifle Light Assault Rifle Light Assault Rifle Improved Light Cannon Grenade Launcher Rocket Launcher Rocket Launcher Mini Grenade Launcher Mining Laser Peak State ------------ > --- POWER ------------ Ion Engine > --- PROPULSION ------- Aluminum Leg Aluminum Leg Aluminum Leg Aluminum Leg > --- UTILITY ---------- Large Storage Unit Improved Terrain Scanner > --- WEAPON ----------- Light Assault Rifle Improved Light Cannon > --- INVENTORY -------- Aluminum Leg Aluminum Leg Improved Aluminum Leg Wheel Medium Matter Pod Actuator Array Medium Laser Small Laser Beam Rifle Light Assault Rifle Light Assault Rifle Light Cannon Grenade Launcher Rocket Launcher Mining Laser [Rating: 14] Favorites ----------- Power Light Ion Engine Engine Light Ion Engine Power Core Light Nuclear Core Propulsion Aluminum Leg Treads Light Treads Leg Aluminum Leg Utility Large Storage Unit Device Seismic Detector Storage Large Storage Unit Weapon Light Assault Rifle Energy Gun Medium Laser Ballistic Gun Light Assault Rifle Ballistic Cannon Light Cannon Launcher Grenade Launcher Build | -11 -10 -10 -9 ------- Run | Yrd Mat Min Mat Slots Evolved 2 | . . . 2 Power . | . . . . Propulsion 2 | . . . 2 Utility . | . . . . Weapon . | . . . . Parts Attached 39 | 6 12 1 20 Power 6 | 1 2 . 3 Engine 5 | 1 1 . 3 Core 1 | . 1 . . Reactor . | . . . . Propulsion 10 | 2 2 . 6 Treads 2 | 2 . . . Leg 8 | . 2 . 6 Wheel . | . . . . Hover . | . . . . Flight . | . . . . Utility 7 | 1 4 . 2 Device 3 | . 1 . 2 Storage 4 | 1 3 . . Processor . | . . . . Hackware . | . . . . Protection . | . . . . Artifact . | . . . . Weapon 16 | 2 4 1 9 Energy Gun 4 | . 1 . 3 Energy Cannon . | . . . . Ballistic Gun 7 | 2 2 1 2 Ballistic Cannon 3 | . 1 . 2 Launcher 2 | . . . 2 Special Weapon . | . . . . Impact Weapon . | . . . . Slashing Weapon . | . . . . Piercing Weapon . | . . . . Special Melee Weapon . | . . . . Unidentified Prototypes . | . . . . Parts Lost 19 | . 3 . 16 Power 5 | . 1 . 4 Propulsion 10 | . 2 . 8 Utility 1 | . . . 1 Weapon 3 | . . . 3 Highest Loss Streak 9 | . 3 . 9 To Critical Strikes 1 | . 1 . . Average Slot Usage (%) 88 | . 87 100 86 Engine 10 | . 9 14 10 Treads 8 | . 16 . . Leg 18 | . 4 28 32 Device 12 | . 12 14 10 Storage 12 | . 14 14 11 Energy Gun 3 | . 5 . 2 Ballistic Gun 16 | . 19 14 12 Ballistic Cannon 4 | . 3 14 4 Peak Build Rating 14 | 6 10 9 14 Average Rating 8 | 5 6 7 11 On Entrance 5 | . 6 7 9 Naked Turns . | . . . . Heaviest Build 34 | 12 29 30 34 Greatest Support 40 | 40 40 20 30 Greatest Overweight (x) 9 | . 9 1 3 Average Overweight (x) 1 | . 1 1 1 Largest Inventory Capacity 15 | 8 15 15 15 Average Capacity 14 | 7 13 15 15 Most Carried 15 | 6 13 11 15 Average Carried 10 | 4 8 9 12 Final Capacity 15 | 8 15 15 15 Final Carried 12 | 6 9 11 12 Class Distribution -------------------- 82% | Mutant 17% | Scavenger-Mutant Dominant Class ---------------- Mutant | -10/Materials Mutant | -10/Mines Mutant | -9/Materials Resources | -11 -10 -10 -9 ----------- Run | Yrd Mat Min Mat Matter Collected 854 | 229 231 . 394 Remotely . | . . . . Salvage Created 870 | . 231 . 639 Parts 56 | . 19 . 37 Haulers Intercepted . | . . . . Recyclers Shooed 4 | . 1 . 3 Parts Field Recycled . | . . . . Retrieved Matter . | . . . . Parts Self-Destructed . | . . . . Prevented . | . . . . Kills | -11 -10 -10 -9 ------- Run | Yrd Mat Min Mat Combat Hostiles Destroyed 25 | . 9 . 16 Guns 17 | . 9 . 8 Cannons 4 | . . . 4 AOE 4 | . . . 4 Classes Destroyed 7 | . 3 . 4 Worker 1 | . . . 1 Builder 1 | . . . 1 Watcher 2 | . 1 . 1 Swarmer 6 | . 6 . . Grunt 13 | . 3 . 10 Duelist 2 | . . . 2 Sentry 4 | . . . 4 Best Kill Streak 4 | . 4 . 3 Combat Bots Only 3 | . 3 . 3 Max Kills in Single Turn 2 | . 1 . 2 Gunslinging . | . . . . Exploded 2 | . . . 2 Melee . | . . . . Uniques/NPCs Destroyed . | . . . . Combat | -11 -10 -10 -9 -------- Run | Yrd Mat Min Mat Hostile Shots Fired 246 | . 68 4 174 Missed 73 | . 19 1 53 Damage Taken 2528 | . 525 47 1956 Core 452 | . 70 15 367 Absorbed by Shields . | . . . . Regen/Repaired (Parts) 62 | . 62 . . Core Remaining (%) 83 | 100 . 66 . Volleys Fired 113 | 2 29 1 81 Largest 2 | 2 2 2 2 Hottest 106 | 40 70 58 106 Shots Fired 202 | 4 58 2 138 Gun 170 | 4 58 1 107 Cannon 20 | . . 1 19 Launcher 12 | . . . 12 Special . | . . . . Kinetic 129 | 4 31 2 92 Thermal 61 | . 27 . 34 Explosive 12 | . . . 12 Electromagnetic . | . . . . Robot Hit Streak 13 | 1 6 7 13 Robot Miss Streak 3 | 1 3 . 3 Penetration Max . | . . . . Secondary Targets 2 | . 2 . . Max Gunslinging Chain 1 | . 1 . . Shots Hit Robots 128 | 2 36 2 88 Core Hits 56 | . 17 1 38 Critical Kills . | . . . . Critical Parts Destroyed . | . . . . Critical Strikes 5 | . 4 . 1 Burn 5 | . 4 . 1 Melee Attacks . | . . . . Impact . | . . . . Slashing . | . . . . Piercing . | . . . . Sneak Attacks . | . . . . Combat Hostiles . | . . . . Follow-up Attacks . | . . . . Damage Inflicted 2034 | 15 416 27 1576 Guns 1217 | 15 404 12 786 Cannons 242 | . . 15 227 Explosions 563 | . . . 563 Melee . | . . . . Ramming 12 | . 12 . . Kinetic 907 | 15 150 27 715 Thermal 552 | . 254 . 298 Explosive 563 | . . . 563 Electromagnetic . | . . . . Impact . | . . . . Slashing . | . . . . Piercing . | . . . . Highest Corruption . | . . . . Average Corruption . | . . . . Corruption Purged . | . . . . Corruption Blocked . | . . . . Overload Shots . | . . . . Overflow Damage 23 | . . . 23 Projectiles . | . . . . Explosions 23 | . . . 23 Melee . | . . . . Knockbacks 4 | . . . 4 Impact . | . . . . Kinetic 4 | . . . 4 Secondary . | . . . . Self-Inflicted Damage . | . . . . Shots . | . . . . Rammed 2 | . 2 . . Targets Rammed 2 | . 2 . . Kicked . | . . . . Crushed . | . . . . Highest Temperature 249 | . 212 . 249 Average Temperature 78 | . 73 . 82 Received Heat Transfer 807 | . 177 . 630 Effects 1 | . . . 1 Interference 1 | . . . 1 Siege Activations . | . . . . Robots Corrupted . | . . . . Combat Hostiles . | . . . . Parts Fried . | . . . . Impact Corruptions . | . . . . Robots Melted . | . . . . Combat Hostiles . | . . . . Parts Melted 5 | . 1 . 4 Heat Transferred 1887 | . 1036 . 851 Parts Sabotaged . | . . . . Parts Stolen . | . . . . Parts Stripped . | . . . . Power Chain Reactions . | . . . . Alert | -11 -10 -10 -9 ------- Run | Yrd Mat Min Mat Peak Influence 302 | . 212 31 302 Initial 31 | . . 31 11 Average 85 | . 76 31 115 Maximum Alert Level 1 | . 1 . 1 Low Security (%) 86 | 100 86 100 82 Level 1 13 | . 13 . 17 Level 2 . | . . . . Level 3 . | . . . . Level 4 . | . . . . Level 5 . | . . . . High Security . | . . . . Max Security . | . . . . Squads Dispatched 3 | . 1 . 2 Investigation 2 | . 1 . 1 Extermination . | . . . . Reinforcement 1 | . . . 1 Assault . | . . . . Garrison . | . . . . Intercept . | . . . . Searches Triggered . | . . . . Construction Impeded . | . . . . Haulers Reinforced . | . . . . Active Scanning Responses . | . . . . Cargo Convoy Interrupts . | . . . . Stealth | -11 -10 -10 -9 --------- Run | Yrd Mat Min Mat Distress Signals 5 | . 3 . 2 Communications Jammed . | . . . . Distress Signals . | . . . . Times Spotted 55 | . 19 14 22 Peak Tracking Total 14 | . 5 14 5 Tactical Retreats 3 | . 1 . 2 Traps | -11 -10 -10 -9 ------- Run | Yrd Mat Min Mat Traps Triggered 4 | . 3 . 1 Indirectly . | . . . . Trap Hack Attempts . | . . . . Triggered . | . . . . Disarmed . | . . . . Reprogrammed . | . . . . Reused . | . . . . Traps Extracted . | . . . . Installed . | . . . . Triggered . | . . . . Machines | -11 -10 -10 -9 ---------- Run | Yrd Mat Min Mat Machines Disabled 1 | . . . 1 Max in Single Turn 1 | . . . 1 Machines Repaired . | . . . . Machines Dismantled . | . . . . Machines Sabotaged . | . . . . Overloaded Fab Kills . | . . . . Hacking | -11 -10 -10 -9 --------- Run | Yrd Mat Min Mat Machines Accessed 3 | . 3 . . Terminals 2 | . 2 . . Fabricators . | . . . . Repair Stations 1 | . 1 . . Recycling Units . | . . . . Scanalyzers . | . . . . Garrison Access . | . . . . Total Hacks 6 | . 6 . . Successful 5 | . 5 . . Failed 1 | . 1 . . Catastrophic 1 | . 1 . . Database Lockouts . | . . . . Manual . | . . . . Terminals 4 | . 4 . . Fabricators . | . . . . Repair Stations 2 | . 2 . . Recycling Units . | . . . . Scanalyzers . | . . . . Garrison Access . | . . . . Terminal Hacks 3 | . 3 . . Alert Level 2 | . 2 . . Locate Traps 1 | . 1 . . Fabricator Hacks . | . . . . Repair Station Hacks 2 | . 2 . . Scan Component 1 | . 1 . . Repair 1 | . 1 . . Recycling Unit Hacks . | . . . . Scanalyzer . | . . . . Garrison Access Hacks . | . . . . Unauthorized Hacks . | . . . . Terminals . | . . . . Fabricators . | . . . . Repair Stations . | . . . . Recycling Units . | . . . . Scanalyzers . | . . . . Garrison Access . | . . . . Data Cores Recovered . | . . . . Used . | . . . . Hacking Detections 1 | . 1 . . Full Trace Events . | . . . . Feedback Events . | . . . . Feedback Blocked . | . . . . Robot Schematics Acquired . | . . . . Robots Built . | . . . . Authchips . | . . . . Time . | . . . . Total Robot Build Rating . | . . . . Part Schematics Acquired . | . . . . Parts Built . | . . . . Authchips . | . . . . Time . | . . . . Total Part Build Rating . | . . . . Parts Repaired 1 | . 1 . . Time 26 | . 26 . . Parts Recycled . | . . . . Recycled Matter . | . . . . Retrieved Matter . | . . . . Retrieved Components . | . . . . Parts Scanalyzed . | . . . . Part Schematics Acquired . | . . . . Parts Damaged . | . . . . Bothacking | -11 -10 -10 -9 ------------ Run | Yrd Mat Min Mat Used RIF Installer . | . . . . Robots Hacked . | . . . . Non-combat . | . . . . Combat . | . . . . Robot Hacks Applied . | . . . . Relay Couplers Released . | . . . . Fabnet Peak Effective % . | . . . . Robots Rewired . | . . . . Allies Hacked . | . . . . Hacks Repelled . | . . . . Allies | -11 -10 -10 -9 -------- Run | Yrd Mat Min Mat Total Allies . | . . . . Largest Group . | . . . . Highest-Rated Group . | . . . . Highest-Rated Ally . | . . . . Total Orders . | . . . . Ally Attacks . | . . . . Total Damage . | . . . . Kills . | . . . . Allies Corrupted . | . . . . Allies Melted . | . . . . Intel | -11 -10 -10 -9 ------- Run | Yrd Mat Min Mat Robot Analysis Total . | . . . . Derelict Logs Recovered 1 | . . 1 . Drone Launches . | . . . . Drone Recoveries . | . . . . Exploration | -11 -10 -10 -9 ------------- Run | Yrd Mat Min Mat Turns Passed 2374 | 118 1097 166 993 Spaces Moved 954 | 63 429 85 377 Core 68 | 6 62 . . Treads 348 | 57 291 . . Legs 538 | . 76 85 377 Wheels . | . . . . Hover . | . . . . Flight . | . . . . Fastest Speed 50 | 50 160 190 120 Average Speed 193 | 149 201 190 192 Slowest Speed 500 | 160 500 190 330 Overloaded Moves . | . . . . Propulsion Burnouts . | . . . . Robots Hopped . | . . . . Cave-ins Triggered . | . . . . Exploration Rate (%) 33 | 4 69 23 38 Regions Visited 3 Branch Regions 1 Pre-discovered Areas 1 | . . 1 . Known Exits Taken . | . . . . Unknown Exits Taken 3 | 1 1 1 . Scrap Searched . | . . . . Spaces Dug . | . . . . Terrain Destroyed 64 | . . . 64 Melee . | . . . . Projectile . | . . . . AOE 64 | . . . 64 Terrain Rammed . | . . . . Walls Destroyed . | . . . . Machines Disabled . | . . . . Actions | -11 -10 -10 -9 --------- Run | Yrd Mat Min Mat Total 1284 | 81 604 88 511 Wait 143 | 5 121 . 17 Move 951 | 62 428 84 377 Hop . | . . . . Pick Up 28 | 6 7 1 14 Fast Attach 12 | 6 2 1 3 Attach 15 | . 4 . 11 Detach 2 | . 1 1 . Swap 12 | . 6 . 6 Drop 6 | . 4 . 2 Fire 113 | 2 29 1 81 Melee . | . . . . Ram 1 | . 1 . . Kick . | . . . . Crush 1 | . 1 . . Escape Stasis . | . . . . Rewire . | . . . . Trap . | . . . . Miscellaneous . | . . . . Route ------- -11/Scrapyard -10/Materials (discovered 3 exits: [*Mat x2] / [*Min]) -10/Mines -9/Materials (discovered 3 exits: [*Mat] / *Sto x2) History --------- Turn | Location | Event 9 | -11/Scrapyard | Discovered new exit (range 15) 119 | -11/Scrapyard | Entered Materials 315 | -10/Materials | Build established: Mutant 348 | -10/Materials | Discovered new exit (range 16) 805 | -10/Materials | Lost 3 parts (1p2n) 1079 | -10/Materials | Repaired Med. Laser 1158 | -10/Materials | Discovered new exit (range 9) 1161 | -10/Materials | Discovered new exit (range 16) 1216 | -10/Materials | Entered Mines 1244 | -10/Mines | Learned location of Storage (-9) 1249 | -10/Mines | Met a Derelict bent on vengeance 1332 | -10/Mines | Discovered new exit (range 14) 1348 | -10/Mines | Joined a pair of Derelicts in attacking an 0b10 outpost 1356 | -10/Mines | Assembled infested the area 1361 | -10/Mines | Assisted by a Guerilla fighting off Assembled 1382 | -10/Mines | Entered Materials 1382 | -9/Materials | Evolved 2 slots: Propulsion x2 1383 | -9/Materials | Identified exit to Storage 1618 | -9/Materials | Discovered exit to Storage (range 11) 2050 | -9/Materials | Discovered new exit (range 8) 2191 | -9/Materials | Lost 9 parts (1p5n1u2w) 2312 | -9/Materials | Core integrity fell below 50% 2375 | -9/Materials | Self-destructed Last Messages --------------- 02335_ Beam Rifle melted. 02335_ Y-45 Defender destroyed. 02336_ R-06 Scavenger collects Lgt. Treads. 02338_ R-06 Scavenger collects Heat Sink. 02339_ K-01 Serf collects debris. 02340_ W-16 Scout sends out distress signal. 02341_ R-06 Scavenger collects Heat Sink. 02342_ K-01 Serf collects debris. 02349_ G-34 Mercenary knocked back. 02372_ Aluminum Leg destroyed. 02374_ M-13 Machinist repairs Sml. Laser. 02375_ Nuclear Reactor explodes. 02375_ Lgt. Ion Engine destroyed. 02375_ Beam Rifle destroyed. 02375_ Imp. Aluminum Leg destroyed. 02375_ Y-45 Defender destroyed. 02375_ Nuclear Reactor explodes. 02375_ M-13 Machinist destroyed. 02375_ G-34 Mercenary destroyed. 02375_ Y-45 Defender destroyed. Map ----- +----------------------------------------------------+ | | | | | | | | | | | | | | | | | | | | | | | | | | | | | | | | | ?????????????????????????????????????????????????? | | ?????????????????????????????????????????????????? | | ????????????????????###########??????????????????? | | ?????###########????# #?#####????????????? | | ?#???# #???## # ????????????? | | ??#??# """ %]!#???# " #???????????? | | ?????# """ ! ##### T #???????????? | | #????# """ ]! # " #???????????? | | ?????# #??# !#???????????? | | ?????# #??# [@ #???????????? | | ###?## #### = ##???????????????? | | # # # # ## = ## #????????????? | | # ########+### ! %[ ????????? | | ########## # ## [ #????????????? | | # " %+ +##???##????????????? | | + """ #k # ???????????????????? | | # S" # % # ??????????????????? | | ########## # # k # "" ?????????????????? | | # ##?############### #?"Y ?????????????????? | | ###????????????????#k +?"" ????????????????? | | " #??????????????????# #????? ???????????????? | | ?" #??????????????????# #?????#???????????????? | | ?" #?????????????????? ?????????????????????? | | ?? #?????????????????? ?????????????????????? | | ??? #?????????????????? ?????????????????????? | | ????#??????????????????######????????????????????? | | ?????????????????????????????????????????????????? | | ?????????????????????????????????????????????????? | | ?????????????????????????????????????????????????? | | ?????????????????????????????????????????????????? | | ????????????????????????????????????????????????? | | ?????????????????????????????????????????????????? | | ?????????????????????????????????????????????????? | | ?????????????????????????????????????????????????? | +----------------------------------------------------+ Best States ------------- Heat Dissipation 28 Energy Generation 14 Energy Capacity 250 Matter Stores 300 Matter Capacity 300 Sight Range 16 Terrain Scan Range 16 Terrain Scan Density 10 Evasion (%) 40 Recoil Reduction 2 Item Schematics ----------------- None Robot Schematics ------------------ None Fabricated ------------ Nothing Alien Tech Used ----------------- None Achievements -------------- None Challenges ------------ None Game ------ Seed HeatFlyingCoupler Manual? 0 Play Time 00:14:37 Cumulative 28.9 hours Start 2024.11.16 @ 18:54:13 End 2024.11.16 @ 19:10:25 Sessions 1 Manual Loads 0 Difficulty Rogue Special Mode None Game No. 75 Rogue 75 Adventurer 0 Explorer 0 Win Type - Total 0 Types 0/0/0/0/0/0/0/0/0 Lore% 8 Gallery% 22 Achievement% 21 Wizard Run 0 Options --------- Layout 1 ASCII 0 Keyboard 0 Movement Numpad Keybinds 0 Fullscreen 0 Font 20/SmallcapsGlow Map View 50x35 Zoom Use 0% Tactical HUD 1 Map Filters NONE Filters NONE Steam 1 RUN: 8b0c6f2f-1835-4859-a4c4-2f43ccd5e5fe